[Event "4NCL 2023-2024"]
[Site "Daventry"]
[Date "2024.05.06"]
[Round "11.42"]
[White "Gourlay, Iain"]
[Black "Macak, Stefan"]
[Result "0-1"]
[ECO "E06"]
[WhiteElo "2310"]
[BlackElo "2330"]
[Annotator "RC"]
[PlyCount "132"]
[EventDate "2023.11.11"]
[EventType "team-tourn"]
[EventCountry "ENG"]
[SourceTitle "playchess.com"]
[Source "ChessBase"]
[SourceQuality "1"]
[TimeControl "40/6000+30:3000+30"]

1. c4 {[%emt 0:13:10]} e6 {[%emt 0:00:38]} 2. g3 {[%emt 0:00:11]} Nf6 {[%emt 0:00:39]} 3. Bg2 {[%emt 0:00:14]} d5 {[%emt 0:00:11]} 4. Nf3 {[%emt 0:01:07]} Be7 {[%emt 0:00:16]} 5. d4 {[%emt 0:00:32]} O-O {[%emt 0:00:12]} 6. Qc2 {[%emt 0:00:19]} a5 {[%emt 0:01:17]} 7. O-O {[%emt 0:03:56]} Nc6 {[%emt 0:04:38]} 8. a3 {[%emt 0:07:20]} a4 {[%emt 0:01:58]} 9. Rd1 {[%emt 0:19:04]} Na5 {[%emt 0:13:49]} 10. Nbd2 {[%emt 0:01:25]} Bd7 {[%emt 0:02:44]} 11. Ne5 {[%emt 0:02:28]} Be8 {[%emt 0:06:02]} 12. Rb1 {[%emt 0:09:46]} c6 {[%emt 0:18:57]} 13. c5 {[%emt 0:10:02]} b5 {[%emt 0:16:22]} 14. cxb6 {[%emt 0:07:47]} Qxb6 {[%emt 0:02:16]} 15. Qxa4 {[%emt 0:03:24]} c5 {[%emt 0:05:53]} 16. Qc2 {[%emt 0:00:16]} cxd4 {[%emt 0:01:40]} 17. b4 {[%emt 0:04:13]} Nb7 {[%emt 0:12:00]} 18. Qb2 {[%emt 0:01:54]} Nd6 {[%emt 0:04:17]} 19. Ndf3 {[%emt 0:10:30]} Nfe4 {[%emt 0:01:57]} 20. Nxd4 {[%emt 0:02:40]} f6 {[%emt 0:03:53]} 21. Nd3 {[%emt 0:05:46]} e5 {[%emt 0:07:58]} 22. Nb3 {[%emt 0:00:39]} Nc4 {[%emt 0:00:09]} 23. Qa1 {[%emt 0:00:22]} Ba4 {[%emt 0:01:51]} 24. Ndc5 {[%emt 0:00:56]} Bxb3 {[%emt 0:00:41]} 25. Bxe4 {[%emt 0:00:36]} Bxd1 {[%emt 0:01:23]} 26. Bxd5+ {[%emt 0:00:15]} Kh8 {[%emt 0:00:05]} 27. Bxc4 {[%emt 0:01:11]} Bxc5 {[%emt 0:00:34]} 28. bxc5 {[%emt 0:00:21]} Qxc5 {[%emt 0:00:08]} 29. Bd3 {[%emt 0:00:35]} Ba4 {[%emt 0:01:23]} 30. Bd2 {[%emt 0:00:13]} Rfc8 {[%emt 0:00:43]} 31. Qa2 {[%emt 0:02:44]} Bc6 {[%emt 0:00:31]} 32. Qe6 {[%emt 0:01:16]} Qd5 {[%emt 0:00:47]} 33. Qxd5 {[%emt 0:00:07]} Bxd5 {[%emt 0:00:01]} 34. Bb4 {[%emt 0:00:14]} e4 {[%emt 0:01:03]} 35. Bb5 {[%emt 0:00:08]} Bc4 {[%emt 0:00:22]} 36. Bxc4 {[%emt 0:00:40]} Rxc4 {[%emt 0:00:00]} 37. Rd1 {[%emt 0:01:20]} Rac8 {[%emt 0:00:31]} 38. Rd7 {[%emt 0:00:36]} Kg8 {[%emt 0:01:01]} 39. Re7 {[%emt 0:00:36]} R8c7 {[%emt 0:00:31]} 40. Rxc7 {[%emt 0:00:56]} Rxc7 {[%emt 0:00:00]} 41. g4 {[%emt 0:01:42]} Rc2 {[%emt 0:04:56]} 42. e3 {[%emt 0:02:47]} Kf7 {[%emt 0:01:29]} 43. Kg2 {[%emt 0:03:59]} Kg6 {[%emt 0:02:20]} 44. Bf8 {[%emt 0:02:01]} Rc8 {[%emt 0:02:51]} 45. Bd6 {[%emt 0:02:27]} Kg5 {[%emt 0:08:27]} 46. Kg3 {[%emt 0:01:42]} h5 {[%emt 0:01:40]} 47. gxh5 {[%emt 0:01:30]} Kxh5 {[%emt 0:01:54]} 48. Bb4 {[%emt 0:07:22]} g5 {[%emt 0:10:04]} 49. a4 {[%emt 0:12:07]} f5 {[%emt 0:05:14]} 50. a5 {[%emt 0:00:49]} Rc1 {[%emt 0:01:33]} 51. h3 {[%emt 0:02:07]} Rg1+ {[%emt 0:03:30]} 52. Kh2 {[%emt 0:00:15]} Rb1 {[%emt 0:00:28]} 53. Bc5 {[%emt 0:02:03]} Ra1 {[%emt 0:01:07]} 54. Bb6 {[%emt 0:02:16]} Ra2 {[%emt 0:04:41]} 55. Kg3 {[%emt 0:01:01]} Ra3 {[%emt 0:00:56]} 56. Kg2 {[%emt 0:02:05]} f4 {[%emt 0:00:27]} 57. exf4 {[%emt 0:02:13]} gxf4 {[%emt 0:00:02]} 58. Bc7 {[%emt 0:04:34]} Kg5 {[%emt 0:00:24]} 59. Bd8+ {[%emt 0:00:08]} Kf5 {[%emt 0:00:17]} 60. Bb6 {[%emt 0:00:07]} Ra1 {[%emt 0:01:23]} 61. Kh2 {[%emt 0:01:08]} Ra4 {[%emt 0:02:55]} 62. Kg2 {[%emt 0:00:26]} Ra3 {[%emt 0:00:13]} 63. Bc7 {[%emt 0:03:08]} Ra2 {[%emt 0:00:30]} 64. Kg1 {[%emt 0:03:30]} e3 {[%emt 0:00:44]} 65. fxe3 {[%emt 0:00:45]} fxe3 {[%emt 0:00:02]} 66. h4 {[%emt 0:00:49]} Ra1+ {[%emt 0:00:54]} 0-1

[Event "4NCL 2023-2024"]
[Site "Daventry"]
[Date "2024.05.06"]
[Round "11.43"]
[White "Badacsonyi, Stanley"]
[Black "Berry, Neil"]
[Result "1/2-1/2"]
[ECO "D00"]
[WhiteElo "2156"]
[BlackElo "2260"]
[Annotator "TA"]
[PlyCount "71"]
[EventDate "2023.11.11"]
[EventType "team-tourn"]
[EventCountry "ENG"]
[SourceTitle "playchess.com"]
[Source "ChessBase"]
[SourceQuality "1"]
[TimeControl "40/6000+30:3000+30"]

{[%evp 9,71,0,0,0,9,5,15,0,7,0,0,-1,0,0,11,7,9,8,8,5,14,15,14,10,13,8,9,0,0,-17,5,0,0,-11,0,0,0,0,0,-33,-14,-14,0,0,0,0,0,0,0,0,0,0,0,0,0,0,0,0,4,0,4,0,0,0]} 1. d4 {[%emt 0:00:02]} Nf6 {[%emt 0:02:24]} 2. Bg5 {[%emt 0:00:07]} d5 {[%emt 0:00:43]} 3. e3 {[%emt 0:00:05]} c5 {[%emt 0:00:53]} 4. c3 {[%emt 0:00:41]} Nc6 {[%emt 0:02:38]} 5. Nd2 {[%emt 0:02:28]} cxd4 {[%emt 0:08:16]} 6. exd4 {[%emt 0:00:20]} Bf5 {[%emt 0:00:45]} 7. Ngf3 {[%emt 0:10:23]} e6 {[%emt 0:04:58]} 8. Be2 {[%emt 0:01:00]} Be7 {[%emt 0:01:38]} 9. O-O {[%emt 0:02:38]} h6 {[%emt 0:01:04]} 10. Bf4 {[%emt 0:01:00]} O-O {[%emt 0:01:14]} 11. Re1 {[%emt 0:00:57]} Ne4 {[%emt 0:05:18]} 12. Nxe4 {[%emt 0:03:51]} Bxe4 {[%emt 0:00:29]} 13. Bd3 {[%emt 0:03:14]} Bxd3 {[%emt 0:05:58]} 14. Qxd3 {[%emt 0:00:19]} Rc8 {[%emt 0:00:35]} 15. Re2 {[%emt 0:00:57]} Bf6 {[%emt 0:04:58]} 16. Rae1 {[%emt 0:01:48]} Ne7 {[%emt 0:03:02]} 17. h3 {[%emt 0:05:39]} Nf5 {[%emt 0:02:13]} 18. Nd2 {[%emt 0:03:30]} Bg5 {[%emt 0:05:01]} 19. Bh2 {[%emt 0:07:43]} Be7 {[%emt 0:06:23]} 20. g4 {[%emt 0:08:07]} Nd6 {[%emt 0:01:55]} 21. Bg3 {[%emt 0:02:28]} Re8 {[%emt 0:04:35]} 22. Kg2 {[%emt 0:00:25]} b5 {[%emt 0:11:45]} 23. f4 {[%emt 0:07:16]} Bh4 {[%emt 0:04:17]} 24. f5 {[%emt 0:12:20][%cal Rf5e6]} Bxg3 {[%emt 0:05:00]} 25. Kxg3 {[%emt 0:01:21] The position is equal.} Qd7 {[%emt 0:09:05]} 26. fxe6 {[%emt 0:01:16]} Rxe6 {[%emt 0:00:26]} 27. Rxe6 {[%emt 0:01:36]} fxe6 {[%emt 0:00:06]} 28. Qg6 {[%emt 0:02:16]} Re8 {[%emt 0:00:31]} 29. Kg2 {[%emt 0:00:16]} Qf7 {[%emt 0:01:28]} 30. Qxf7+ {[%emt 0:00:16]} Kxf7 $11 {[%emt 0:00:35][%mdl 4096] Endgame. KRN-KRN} 31. Nf3 {[%emt 0:00:23]} Nc4 {[%emt 0:04:37]} 32. Re2 {[%emt 0:03:46]} Ke7 {[%emt 0:02:22]} 33. Ne1 {[%emt 0:02:11]} Nd6 {[%emt 0:01:25]} 34. Nd3 {[%emt 0:03:47]} Ne4 {[%emt 0:00:14]} 35. Re3 {[%emt 0:03:42]} Rf8 {[%emt 0:05:55]} 36. Rf3 {[%emt 0:02:34] An uneventful encounter.   Weighted Error Value: White=0.04 (flawless) /Black=0.04 (flawless) .  Inaccurate:     	White=1     	---        OK:         	White=8     	Black=12} 1/2-1/2

[Event "4NCL 2023-2024"]
[Site "Daventry"]
[Date "2024.05.06"]
[Round "11.44"]
[White "Shafi, Declan"]
[Black "Rocco, Federico"]
[Result "1-0"]
[ECO "E38"]
[WhiteElo "2226"]
[BlackElo "2163"]
[Annotator "RC"]
[PlyCount "49"]
[EventDate "2023.11.11"]
[EventType "team-tourn"]
[EventCountry "ENG"]
[SourceTitle "playchess.com"]
[Source "ChessBase"]
[SourceQuality "1"]
[TimeControl "40/6000+30:3000+30"]

1. d4 {[%emt 0:00:03]} Nf6 {[%emt 0:11:51]} 2. c4 {[%emt 0:00:03]} e6 {[%emt 0:00:07]} 3. Nc3 {[%emt 0:00:05]} Bb4 {[%emt 0:01:05]} 4. Qc2 {[%emt 0:00:07]} d5 {[%emt 0:00:24]} 5. e3 {[%emt 0:02:51]} O-O {[%emt 0:00:58]} 6. Nf3 {[%emt 0:01:25]} c5 {[%emt 0:02:45]} 7. a3 {[%emt 0:08:21]} Bxc3+ {[%emt 0:05:09]} 8. bxc3 {[%emt 0:00:11]} Nc6 {[%emt 0:01:41]} 9. Be2 {[%emt 0:02:05]} Qa5 {[%emt 0:06:21]} 10. O-O {[%emt 0:01:55]} dxc4 {[%emt 0:06:58]} 11. Bxc4 {[%emt 0:00:43]} Bd7 {[%emt 0:06:17]} 12. Rb1 {[%emt 0:14:14]} Qc7 {[%emt 0:01:32]} 13. Be2 {[%emt 0:12:36]} Rac8 {[%emt 0:02:06]} 14. Qb2 {[%emt 0:02:38]} b6 {[%emt 0:06:22]} 15. Rd1 {[%emt 0:01:58]} Na5 {[%emt 0:03:10]} 16. Ne5 {[%emt 0:03:34]} Ba4 {[%emt 0:01:13]} 17. Re1 {[%emt 0:00:56]} Ne4 {[%emt 0:02:21]} 18. Ba6 {[%emt 0:13:23]} Rcd8 {[%emt 0:02:23]} 19. Bd3 {[%emt 0:04:06]} cxd4 {[%emt 0:03:49]} 20. Bxe4 {[%emt 0:07:38]} dxc3 {[%emt 0:00:22]} 21. Qb4 {[%emt 0:01:36]} c2 {[%emt 0:00:47]} 22. Rb2 {[%emt 0:03:51]} Qxe5 {[%emt 0:01:46]} 23. f4 {[%emt 0:04:32]} Qc5 {[%emt 0:31:11]} 24. Qxa4 {[%emt 0:01:49]} Qc3 {[%emt 0:02:02]} 25. Qb4 {[%emt 0:02:20]} 1-0

[Event "4NCL 2023-2024"]
[Site "Daventry"]
[Date "2024.05.06"]
[Round "11.45"]
[White "Villiers, Thomas"]
[Black "McKay, Roderick M"]
[Result "1/2-1/2"]
[ECO "B07"]
[WhiteElo "2232"]
[BlackElo "2181"]
[Annotator "RC"]
[PlyCount "99"]
[EventDate "2023.11.11"]
[EventType "team-tourn"]
[EventCountry "ENG"]
[SourceTitle "playchess.com"]
[Source "ChessBase"]
[SourceQuality "1"]
[TimeControl "40/6000+30:3000+30"]

1. e4 {[%emt 0:00:35]} d6 {[%emt 0:00:16]} 2. d4 {[%emt 0:00:32]} Nf6 {[%emt 0:00:11]} 3. Nc3 {[%emt 0:00:07]} e5 {[%emt 0:00:22]} 4. dxe5 {[%emt 0:02:02]} dxe5 {[%emt 0:00:03]} 5. Qxd8+ {[%emt 0:00:09]} Kxd8 {[%emt 0:00:11]} 6. Nf3 {[%emt 0:02:44]} Bd6 {[%emt 0:00:46]} 7. Bc4 {[%emt 0:00:35]} Be6 {[%emt 0:00:49]} 8. Bxe6 {[%emt 0:02:49]} fxe6 {[%emt 0:00:19]} 9. Be3 {[%emt 0:01:13]} Nbd7 {[%emt 0:00:34]} 10. O-O-O {[%emt 0:01:55]} a6 {[%emt 0:00:59]} 11. Nd2 {[%emt 0:01:40]} b5 {[%emt 0:00:49]} 12. f3 {[%emt 0:00:22]} Ke7 {[%emt 0:01:15]} 13. Nb3 {[%emt 0:00:39]} Rhc8 {[%emt 0:08:19]} 14. Rd2 {[%emt 0:03:57]} Bb4 {[%emt 0:06:57]} 15. Rhd1 {[%emt 0:00:28]} c5 {[%emt 0:04:56]} 16. a3 {[%emt 0:03:48]} Bxc3 {[%emt 0:01:50]} 17. bxc3 {[%emt 0:00:06]} a5 {[%emt 0:01:08]} 18. Bg5 {[%emt 0:02:32]} Rc7 {[%emt 0:06:55]} 19. Kb1 {[%emt 0:05:54]} h6 {[%emt 0:05:41]} 20. Bh4 {[%emt 0:00:39]} g5 {[%emt 0:07:54]} 21. Bg3 {[%emt 0:02:32]} Nh5 {[%emt 0:00:18]} 22. Nc1 {[%emt 0:10:19]} Rb8 {[%emt 0:10:40]} 23. Nd3 {[%emt 0:03:28]} Nxg3 {[%emt 0:00:57]} 24. hxg3 {[%emt 0:00:06]} c4 {[%emt 0:00:22]} 25. Nb2 {[%emt 0:15:51]} b4 {[%emt 0:02:08]} 26. cxb4 {[%emt 0:01:55]} c3 {[%emt 0:01:43]} 27. Rxd7+ {[%emt 0:00:27]} Rxd7 {[%emt 0:00:08]} 28. Rxd7+ {[%emt 0:00:40]} Kxd7 {[%emt 0:00:07]} 29. Nd3 {[%emt 0:00:10]} axb4 {[%emt 0:02:33]} 30. axb4 {[%emt 0:15:20]} Ra8 {[%emt 0:07:28]} 31. Nxe5+ {[%emt 0:00:47]} Ke7 {[%emt 0:01:22]} 32. Nc6+ {[%emt 0:10:45]} Kd6 {[%emt 0:01:25]} 33. Nd4 {[%emt 0:02:31]} Rb8 {[%emt 0:04:40]} 34. b5 {[%emt 0:01:44]} Rb6 {[%emt 0:03:04]} 35. Ne2 {[%emt 0:03:58]} Rxb5+ {[%emt 0:00:36]} 36. Kc1 {[%emt 0:00:05]} Rc5 {[%emt 0:01:42]} 37. Kb1 {[%emt 0:00:15]} Ke5 {[%emt 0:09:40]} 38. Ka2 {[%emt 0:00:09]} Rc8 {[%emt 0:02:01]} 39. Kb3 {[%emt 0:00:09]} h5 {[%emt 0:00:50]} 40. Kb4 {[%emt 0:02:17]} g4 {[%emt 0:03:44]} 41. Nxc3 {[%emt 0:52:05]} Kd4 {[%emt 0:50:33]} 42. Ne2+ {[%emt 0:00:52]} Ke3 {[%emt 0:00:31]} 43. Nf4 {[%emt 0:00:07]} gxf3 {[%emt 0:09:20]} 44. gxf3 {[%emt 0:00:04]} h4 {[%emt 0:02:53]} 45. Ng2+ {[%emt 0:00:05]} Kxf3 {[%emt 0:00:17]} 46. Nxh4+ {[%emt 0:00:03]} Kxg3 {[%emt 0:00:34]} 47. Ng6 {[%emt 0:00:06]} Rxc2 {[%emt 0:00:15]} 48. Nf8 {[%emt 0:01:05]} Re2 {[%emt 0:02:55]} 49. Kc5 {[%emt 0:00:23]} Rxe4 {[%emt 0:00:50]} 50. Kd6 {[%emt 0:00:11]} 1/2-1/2

[Event "4NCL 2023-2024"]
[Site "Daventry"]
[Date "2024.05.06"]
[Round "11.46"]
[White "Vijayakumar, Rishi"]
[Black "Mirzoeva, Elmira"]
[Result "1/2-1/2"]
[ECO "A50"]
[WhiteElo "2197"]
[BlackElo "2252"]
[Annotator "ChessBase"]
[PlyCount "226"]
[EventDate "2023.11.11"]
[EventType "team-tourn"]
[EventCountry "ENG"]
[SourceTitle "playchess.com"]
[Source "ChessBase"]
[SourceQuality "1"]
[TimeControl "40/6000+30:3000+30"]

1. d4 {[%emt 0:00:27]} Nf6 {[%emt 0:00:14]} 2. c4 {[%emt 0:00:20]} e6 {[%emt 0:00:40]} 3. Nf3 {[%emt 0:00:14]} b6 {[%emt 0:00:20]} 4. g3 {[%emt 0:00:31]} Bb7 {[%emt 0:00:24]} 5. Bg2 {[%emt 0:00:08]} g6 {[%emt 0:00:18]} 6. Nc3 {[%emt 0:01:43]} Bg7 {[%emt 0:02:37]} 7. O-O {[%emt 0:00:47]} Ne4 {[%emt 0:00:27]} 8. Nxe4 {[%emt 0:32:31]} Bxe4 {[%emt 0:00:13]} 9. d5 {[%emt 0:04:35]} O-O {[%emt 0:02:15]} 10. Bg5 {[%emt 0:05:41]} f6 {[%emt 0:12:51]} 11. Be3 {[%emt 0:00:33]} c6 {[%emt 0:05:44]} 12. Ne1 {[%emt 0:20:34]} Bxg2 {[%emt 0:11:40]} 13. Nxg2 {[%emt 0:00:06]} f5 {[%emt 0:00:48]} 14. Qd2 {[%emt 0:00:09]} e5 {[%emt 0:04:22]} 15. c5 {[%emt 0:06:46]} Na6 {[%emt 0:09:49]} 16. Rad1 {[%emt 0:19:55]} Nxc5 {[%emt 0:04:18]} 17. dxc6 {[%emt 0:01:21]} dxc6 {[%emt 0:00:13]} 18. Qc2 {[%emt 0:00:06]} Qe7 {[%emt 0:00:56]} 19. b4 {[%emt 0:00:12]} Ne4 {[%emt 0:06:00]} 20. Qxc6 {[%emt 0:00:29]} Rfc8 {[%emt 0:11:51]} 21. Qd5+ {[%emt 0:00:33]} Kh8 {[%emt 0:00:22]} 22. Rc1 {[%emt 0:00:10]} Rd8 {[%emt 0:04:32]} 23. Qc4 {[%emt 0:02:30]} Rd7 {[%emt 0:00:33]} 24. Rfd1 {[%emt 0:01:12]} Rad8 {[%emt 0:00:30]} 25. Rxd7 {[%emt 0:00:08]} Qxd7 {[%emt 0:00:11]} 26. h4 {[%emt 0:01:13]} h6 {[%emt 0:06:15]} 27. Kh2 {[%emt 0:00:30]} Kh7 {[%emt 0:01:51]} 28. Qc7 {[%emt 0:06:03]} Bf6 {[%emt 0:11:59]} 29. a4 {[%emt 0:00:35]} g5 {[%emt 0:02:28]} 30. hxg5 {[%emt 0:02:33]} hxg5 {[%emt 0:00:14]} 31. f3 {[%emt 0:00:54]} Nd6 {[%emt 0:02:06]} 32. a5 {[%emt 0:01:02]} bxa5 {[%emt 0:02:28]} 33. Qxa5 {[%emt 0:00:31]} Nb5 {[%emt 0:04:07]} 34. Qa6 {[%emt 0:00:36]} Be7 {[%emt 0:01:50]} 35. Rc6 {[%emt 0:00:25]} Nd6 {[%emt 0:00:10]} 36. Qxa7 {[%emt 0:00:29]} f4 {[%emt 0:01:14]} 37. Qxd7 {[%emt 0:00:41]} Rxd7 {[%emt 0:00:03]} 38. Bc5 {[%emt 0:01:33]} Nf5 {[%emt 0:00:52]} 39. gxf4 {[%emt 0:00:42]} exf4 {[%emt 0:00:08]} 40. Bxe7 {[%emt 0:00:29]} Rxe7 {[%emt 0:00:32]} 41. Rf6 {[%emt 0:13:38]} Re5 {[%emt 0:04:37]} 42. Kh3 {[%emt 0:01:24]} Kg7 {[%emt 0:00:10]} 43. Ra6 {[%emt 0:01:21]} Rxe2 {[%emt 0:01:46]} 44. Nxf4 {[%emt 0:00:26]} gxf4 {[%emt 0:00:36]} 45. Kg4 {[%emt 0:00:16]} Ne3+ {[%emt 0:00:41]} 46. Kxf4 {[%emt 0:00:11]} Nd5+ {[%emt 0:00:06]} 47. Kg3 {[%emt 0:00:10]} Nxb4 {[%emt 0:00:05]} 48. Rb6 {[%emt 0:00:25]} Nd5 {[%emt 0:00:07]} 49. Ra6 {[%emt 0:00:37]} Nf6 {[%emt 0:00:07]} 50. Ra7+ {[%emt 0:00:20]} Kg6 {[%emt 0:00:04]} 51. Ra6 {[%emt 0:00:15]} Rb2 {[%emt 0:00:10]} 52. Rc6 {[%emt 0:00:15]} Rb5 {[%emt 0:00:13]} 53. Ra6 {[%emt 0:00:12]} Kf5 {[%emt 0:00:14]} 54. Ra8 {[%emt 0:01:59]} Nh5+ {[%emt 0:00:18]} 55. Kh4 {[%emt 0:02:41]} Nf4 {[%emt 0:01:23]} 56. Rf8+ {[%emt 0:00:17]} Ke5 {[%emt 0:00:06]} 57. Re8+ {[%emt 0:00:05]} Ne6 {[%emt 0:00:07]} 58. Kg3 {[%emt 0:00:06]} Kf5 {[%emt 0:00:10]} 59. Rh8 {[%emt 0:01:18]} Rb3 {[%emt 0:00:08]} 60. Ra8 {[%emt 0:02:38]} Ng5 {[%emt 0:00:24]} 61. Rf8+ {[%emt 0:00:30]} Kg6 {[%emt 0:00:17]} 62. Rg8+ {[%emt 0:01:54]} Kf6 {[%emt 0:00:14]} 63. Rf8+ {[%emt 0:31:05]} Nf7 {[%emt 0:00:04]} 64. Kf4 {[%emt 0:00:00]} Rb4+ {[%emt 0:00:20]} 65. Kg3 {[%emt 0:00:00]} Ke6 {[%emt 0:00:09]} 66. Re8+ {[%emt 0:00:00]} Kd5 {[%emt 0:00:06]} 67. Rf8 {[%emt 0:00:00]} Nd6 {[%emt 0:00:06]} 68. Rf4 {[%emt 0:00:00]} Rb1 {[%emt 0:00:09]} 69. Rf8 {[%emt 0:00:00]} Ke5 {[%emt 0:00:08]} 70. Ra8 {[%emt 0:00:00]} Nf5+ {[%emt 0:00:37]} 71. Kh3 {[%emt 0:00:00]} Kf4 {[%emt 0:00:49]} 72. Ra4+ {[%emt 0:00:00]} Kxf3 {[%emt 0:00:14]} 73. Ra3+ {[%emt 0:00:00]} Ne3 {[%emt 0:00:59]} 74. Kh4 {[%emt 0:00:00]} Rb5 {[%emt 0:01:02]} 75. Rd3 {[%emt 0:00:00]} Rc5 {[%emt 0:02:24]} 76. Ra3 {[%emt 0:00:00]} Kf4 {[%emt 0:00:11]} 77. Ra4+ {[%emt 0:00:00]} Nc4 {[%emt 0:00:04]} 78. Ra8 {[%emt 0:00:00]} Nd6 {[%emt 0:00:31]} 79. Ra4+ {[%emt 0:00:00]} Ne4 {[%emt 0:00:05]} 80. Rb4 {[%emt 0:00:00]} Rc1 {[%emt 0:00:31]} 81. Kh5 {[%emt 0:00:00]} Kf5 {[%emt 0:00:12]} 82. Rb5+ {[%emt 0:00:00]} Nc5 {[%emt 0:00:17]} 83. Kh4 {[%emt 0:00:00]} Kf4 {[%emt 0:00:28]} 84. Rb4+ {[%emt 0:00:00]} Ne4 {[%emt 0:00:03]} 85. Kh5 {[%emt 0:00:00]} Rc6 {[%emt 0:00:17]} 86. Ra4 {[%emt 0:00:00]} Kf5 {[%emt 0:00:27]} 87. Ra5+ {[%emt 0:00:00]} Nc5 {[%emt 0:00:04]} 88. Rb5 {[%emt 0:00:00]} Rc8 {[%emt 0:00:31]} 89. Kh4 {[%emt 0:00:00]} Kf4 {[%emt 0:00:09]} 90. Rb4+ {[%emt 0:00:00]} Ne4 {[%emt 0:00:06]} 91. Kh5 {[%emt 0:00:00]} Rg8 {[%emt 0:00:36]} 92. Ra4 {[%emt 0:00:00]} Rg2 {[%emt 0:00:36]} 93. Rb4 {[%emt 0:00:00]} Kf5 {[%emt 0:00:21]} 94. Rb5+ {[%emt 0:00:00]} Ke6 {[%emt 0:00:12]} 95. Rb6+ {[%emt 0:00:00]} Nd6 {[%emt 0:00:12]} 96. Ra6 {[%emt 0:00:00]} Kf5 {[%emt 0:00:20]} 97. Ra5+ {[%emt 0:00:00]} Kf4 {[%emt 0:00:28]} 98. Ra4+ {[%emt 0:00:00]} Ne4 {[%emt 0:00:18]} 99. Rb4 {[%emt 0:00:00]} Rg5+ {[%emt 0:00:15]} 100. Kh4 {[%emt 0:01:17]} Ra5 {[%emt 0:00:31]} 101. Rb8 {[%emt 0:03:29]} Ng3 {[%emt 0:01:24]} 102. Rb4+ {[%emt 0:00:17]} Ne4 {[%emt 0:00:06]} 103. Rb8 {[%emt 0:00:04]} Kf5 {[%emt 0:00:13]} 104. Rf8+ {[%emt 0:00:23]} Nf6 {[%emt 0:00:03]} 105. Kg3 {[%emt 0:00:08]} Kg5 {[%emt 0:00:06]} 106. Kf3 {[%emt 0:00:43]} Ra3+ {[%emt 0:00:13]} 107. Ke2 {[%emt 0:00:07]} Ne4 {[%emt 0:00:06]} 108. Rg8+ {[%emt 0:00:06]} Kf4 {[%emt 0:00:08]} 109. Rf8+ {[%emt 0:00:08]} Ke5 {[%emt 0:00:14]} 110. Re8+ {[%emt 0:00:05]} Kd5 {[%emt 0:00:04]} 111. Rd8+ {[%emt 0:00:06]} Nd6 {[%emt 0:00:04]} 112. Kf2 {[%emt 0:00:56]} Ke5 {[%emt 0:00:09]} 113. Ke2 {[%emt 0:00:11]} Ra2+ {[%emt 0:00:13]} 1/2-1/2

[Event "4NCL 2023-2024"]
[Site "Daventry"]
[Date "2024.05.06"]
[Round "11.47"]
[White "Josse, Mark"]
[Black "White, Stuart A"]
[Result "1-0"]
[ECO "B56"]
[WhiteElo "2153"]
[BlackElo "2000"]
[Annotator "RC"]
[PlyCount "105"]
[EventDate "2023.11.11"]
[EventType "team-tourn"]
[EventCountry "ENG"]
[SourceTitle "playchess.com"]
[Source "ChessBase"]
[SourceQuality "1"]
[TimeControl "40/6000+30:3000+30"]

1. e4 {[%emt 0:00:05]} c5 {[%emt 0:00:09]} 2. Nc3 {[%emt 0:00:12]} Nc6 {[%emt 0:00:11]} 3. Nf3 {[%emt 0:00:18]} d6 {[%emt 0:00:36]} 4. d4 {[%emt 0:00:15]} cxd4 {[%emt 0:00:06]} 5. Nxd4 {[%emt 0:00:05]} Nf6 {[%emt 0:00:04]} 6. f3 {[%emt 0:00:51]} e5 {[%emt 0:00:27]} 7. Nb3 {[%emt 0:00:13]} Be7 {[%emt 0:01:04]} 8. Be3 {[%emt 0:04:11]} O-O {[%emt 0:00:16]} 9. Qd2 {[%emt 0:00:10]} a5 {[%emt 0:00:05]} 10. Bb5 {[%emt 0:01:47]} Na7 {[%emt 0:00:23]} 11. Be2 {[%emt 0:12:46]} Nc6 {[%emt 0:01:10]} 12. Nd5 {[%emt 0:21:32]} Nxd5 {[%emt 0:02:17]} 13. exd5 {[%emt 0:01:57]} Nb8 {[%emt 0:01:13]} 14. a4 {[%emt 0:11:07]} Nd7 {[%emt 0:06:18]} 15. Bb5 {[%emt 0:03:20]} f5 {[%emt 0:05:15]} 16. O-O-O {[%emt 0:06:53]} b6 {[%emt 0:07:05]} 17. Kb1 {[%emt 0:03:21]} Nc5 {[%emt 0:08:05]} 18. Nxc5 {[%emt 0:02:03]} bxc5 {[%emt 0:00:11]} 19. Bxc5 {[%emt 0:05:07]} Bd7 {[%emt 0:13:35]} 20. Be3 {[%emt 0:03:23]} Bxb5 {[%emt 0:05:21]} 21. axb5 {[%emt 0:00:03]} Qd7 {[%emt 0:02:02]} 22. c4 {[%emt 0:01:38]} a4 {[%emt 0:02:21]} 23. Ka2 {[%emt 0:06:32]} Bd8 {[%emt 0:03:03]} 24. Qd3 {[%emt 0:00:36]} Ba5 {[%emt 0:02:38]} 25. Rc1 {[%emt 0:01:09]} Rab8 {[%emt 0:10:11]} 26. Rhd1 {[%emt 0:00:52]} Rfc8 {[%emt 0:05:53]} 27. Bd2 {[%emt 0:07:41]} Bb6 {[%emt 0:01:35]} 28. Bb4 {[%emt 0:00:28]} Bc5 {[%emt 0:05:58]} 29. Qa3 {[%emt 0:01:10]} Ra8 {[%emt 0:02:41]} 30. Bxc5 {[%emt 0:01:45]} Rxc5 {[%emt 0:00:34]} 31. Qb4 {[%emt 0:01:00]} Qc7 {[%emt 0:04:10]} 32. Rc3 {[%emt 0:01:08]} Qb6 {[%emt 0:04:15]} 33. Ra3 {[%emt 0:02:25]} Rac8 {[%emt 0:03:53]} 34. Rc3 {[%emt 0:00:56]} R8c7 {[%emt 0:05:30]} 35. Rdc1 {[%emt 0:00:39]} Ra7 {[%emt 0:01:47]} 36. Ra3 {[%emt 0:00:43]} Rcc7 {[%emt 0:00:50]} 37. Kb1 {[%emt 0:00:24]} e4 {[%emt 0:03:33]} 38. fxe4 {[%emt 0:03:47]} fxe4 {[%emt 0:00:07]} 39. Re1 {[%emt 0:02:18]} Re7 {[%emt 0:01:38]} 40. Rae3 {[%emt 0:03:47]} a3 {[%emt 0:03:10]} 41. Rxa3 {[%emt 0:09:08]} Rxa3 {[%emt 0:01:31]} 42. Qxa3 {[%emt 0:00:22]} Qf2 {[%emt 0:06:05]} 43. Qe3 {[%emt 0:04:18]} Qxg2 {[%emt 0:01:10]} 44. c5 {[%emt 0:01:56]} Rb7 {[%emt 0:09:35]} 45. b6 {[%emt 0:02:36]} dxc5 {[%emt 0:02:37]} 46. Qxc5 {[%emt 0:00:42]} Qg4 {[%emt 0:00:30]} 47. Qc6 {[%emt 0:07:17]} Qd7 {[%emt 0:07:47]} 48. Rxe4 {[%emt 0:01:52]} h6 {[%emt 0:00:51]} 49. Qg6 {[%emt 0:09:17]} Kf8 {[%emt 0:03:10]} 50. Qe6 {[%emt 0:13:37]} Qxe6 {[%emt 0:04:11]} 51. Rxe6 {[%emt 0:00:09]} Rd7 {[%emt 0:00:31]} 52. Rc6 {[%emt 0:01:26]} Ke7 {[%emt 0:01:43]} 53. Rc7 {[%emt 0:02:32]} 1-0